bitfinex/quotes_ETHUSD_20260108
["timestamp","ask_amount","ask_price","bid_price","bid_amount"]
[1767869905372,0.92243815,3130.2,3129.5,0.001]
[1767869906238,0.838,3130.3,3129.5,0.001]
[1767869906239,0.92243815,3130.0,3129.5,0.001]
[1767869906429,0.92243815,3130.0,3128.8,0.97542955]
[1767869906629,0.17614381,3129.9,3128.8,0.97542955]
[1767869906854,0.838,3129.8,3128.8,0.97542955]
[1767869907094,0.92243815,3129.7,3128.4,0.97542955]
[1767869907229,7.31303119,3129.6,3128.4,0.97542955]
[1767869907429,8.12813431,3129.6,3128.5,0.97542955]
[1767869907747,0.92243815,3129.5,3128.5,0.97542955]
[1767869908674,0.92243815,3129.5,3127.7,0.03513984]
[1767869908675,1.76043815,3129.4,3128.1,0.97542955]
[1767869908829,0.92243815,3129.3,3128.1,0.97542955]
[1767869909184,0.92243815,3129.0,3127.7,4.17260409]
[1767869909464,0.838,3128.9,3127.8,0.97542955]
[1767869909758,3.19571013,3129.2,3128.0,0.97542955]
[1767869909939,0.838,3128.8,3128.0,0.97542955]
[1767869910528,7.31385841,3129.2,3128.0,0.97542955]
[1767869910728,2.63813499,3129.1,3128.0,0.97542955]
[1767869911134,6.39181846,3129.0,3128.0,0.97542955]
[1767869911459,7.31425661,3129.0,3127.8,3.19708936]
[1767869911761,0.92243815,3128.9,3127.8,4.17253935]
[1767869912172,0.92243815,3128.9,3127.8,0.97542955]
[1767869912369,0.73142566,3128.8,3128.1,0.8]
[1767869912875,1.57042565,3128.8,3128.1,0.8]
[1767869913073,0.83899999,3128.8,3128.2,0.9106204]
[1767869913262,0.839,3128.7,3128.2,0.9106204]
[1767869913463,0.839,3128.7,3128.1,0.8]
[1767869916042,0.99208798,3128.6,3128.1,0.8]
[1767869916249,4.03523722,3128.7,3128.1,0.8]
[1767869916447,0.72314275,3128.6,3128.1,0.8]
[1767869916641,1.56214274,3128.6,3128.1,0.8]
[1767869917777,4.7585103,3128.6,3128.1,0.8]
[1767869918565,0.99208798,3128.5,3128.1,0.8]
[1767869918780,0.99208798,3128.5,3127.5,3.1973891]
[1767869918980,0.89469658,3128.4,3127.3,0.9106204]
[1767869919196,0.89469658,3128.4,3127.4,3.19752485]
[1767869919392,0.84226932,3128.3,3127.0,3.1978655]
[1767869919592,4.0357695,3128.2,3127.2,3.19774878]
[1767869921709,0.83899999,3128.1,3127.2,3.19774878]
[1767869922027,0.84226932,3128.0,3127.2,0.73062026]
[1767869922215,0.84226932,3128.0,3127.1,3.19782548]
[1767869922402,0.84226932,3128.0,3127.5,0.001]
[1767869924301,3.19664007,3128.3,3127.5,0.001]
[1767869924302,0.839,3127.9,3127.5,0.001]
[1767869925324,1.67799999,3127.9,3127.5,0.001]
[1767869927429,0.84226932,3128.6,3127.5,0.9116204]
[1767869927613,0.839,3128.5,3127.6,0.94259379]
[1767869927822,1.64638612,3128.5,3127.6,0.9106204]
[1767869928902,3.19652218,3128.4,3127.6,0.9106204]
[1767869929529,0.83899999,3128.4,3127.6,0.9106204]
[1767869932202,4.03561045,3128.4,3127.6,0.9106204]
[1767869932401,4.87787977,3128.4,3127.5,0.001]
[1767869932733,5.76921441,3128.4,3127.5,0.001]
[1767869932921,8.96582487,3128.4,3127.5,0.001]
[1767869933117,5.76921441,3128.4,3127.5,0.001]
[1767869933725,5.76921441,3128.4,3127.9,0.001]
[1767869934734,8.96582487,3128.4,3127.9,0.001]
[1767869935002,1.82275181,3128.3,3127.9,0.001]
[1767869936420,0.98048249,3128.3,3127.9,0.001]
[1767869936626,0.84226932,3128.2,3127.9,0.001]
[1767869936937,4.03899648,3128.2,3127.9,0.001]
[1767869937114,0.84226932,3128.1,3127.5,0.001]
[1767869937312,0.839,3128.0,3127.5,0.9116204]
[1767869937637,0.839,3128.0,3127.5,0.001]
[1767869937836,1.68026932,3128.0,3127.5,0.001]
[1767869938014,0.839,3128.0,3127.5,0.9116204]
[1767869939339,0.839,3128.0,3127.5,1.64229482]
[1767869939841,0.84126932,3127.9,3127.5,0.73167442]
[1767869940021,0.839,3128.0,3127.5,0.001]
[1767869940221,0.839,3128.0,3127.5,0.9116204]
[1767869940739,0.839,3128.0,3127.6,0.9106204]
[1767869940944,0.83899999,3127.8,3127.6,0.9106204]
[1767869941143,0.839,3128.0,3127.6,0.9106204]
[1767869941944,4.38066178,3129.1,3127.6,0.9106204]
[1767869941945,0.84126932,3128.9,3127.7,0.9106204]
[1767869942106,0.84126932,3128.6,3127.6,3.19733411]
[1767869942313,1.68026932,3128.8,3127.7,0.94989559]
[1767869942622,6.39202274,3128.9,3127.7,0.94989559]
[1767869942952,0.839,3128.7,3127.9,0.94989559]
[1767869943109,4.03547149,3128.5,3127.9,0.94989559]
[1767869944418,4.03547149,3128.5,3127.6,3.19733411]
[1767869944419,7.23194299,3128.5,3127.6,0.91521515]
[1767869944822,10.42841449,3128.5,3127.6,0.91521515]
[1767869945020,1.12696838,3128.4,3127.6,0.91521515]
[1767869945653,6.39324872,3128.3,3127.9,0.001]
[1767869945861,0.839,3128.2,3127.6,0.91521515]
[1767869946045,0.839,3128.2,3127.5,0.001]
[1767869947750,4.0357689,3128.2,3127.5,0.91621515]
[1767869948111,0.83899999,3128.1,3127.5,0.91621515]
[1767869948548,0.839,3128.0,3127.5,0.91621515]
[1767869950151,0.839,3127.9,3127.5,0.91621515]
[1767869950963,0.83700001,3127.9,3127.5,0.91621515]
[1767869951520,0.83899999,3127.8,3127.5,0.91621515]
[1767869952819,0.839,3127.7,3127.5,0.91621515]
[1767869953854,0.839,3127.7,3127.0,0.91521515]
[1767869954043,0.839,3127.7,3127.1,0.91521515]
[1767869954217,0.839,3127.7,3127.1,1.6463217]
[1767869954956,0.839,3127.7,3127.1,4.84415279]
[1767869955621,0.839,3127.7,3127.2,4.11295809]
[1767869956249,0.83899999,3127.6,3127.2,4.11295809]
[1767869957183,0.83899999,3127.6,3127.3,0.91521515]
[1767869957357,3.1968695,3128.1,3127.5,0.91521515]
[1767869957651,0.839,3128.0,3127.5,0.91521515]
[1767869957853,0.839,3128.0,3127.8,0.001]
[1767869958031,0.839,3128.0,3127.3,0.80738866]
[1767869958234,0.002,3127.9,3127.3,0.80738866]
[1767869958623,0.002,3127.9,3127.3,1.72260381]
[1767869959324,0.83899999,3127.8,3127.3,1.72260381]
[1767869960151,0.83899999,3127.8,3127.3,0.80738866]
[1767869960451,0.83899999,3127.8,3127.1,4.11304107]
[1767869960869,0.83899999,3127.8,3127.2,3.19773612]
[1767869961069,0.83899999,3127.8,3127.3,0.91521515]
[1767869967867,0.83899999,3127.8,3127.1,4.11305865]
[1767869968369,0.83899999,3127.8,3127.2,0.91521515]
[1767869968666,0.83899999,3127.8,3127.2,1.32652102]
[1767869969162,1.82024659,3127.8,3127.2,0.41130587]
[1767869969363,5.40280032,3127.8,3126.9,0.91521515]
[1767869969562,0.9812466,3127.7,3126.9,4.11318005]
[1767869970261,4.17849646,3127.7,3126.9,0.91521515]
[1767869970667,4.17849646,3127.7,3127.5,0.001]
[1767869970875,0.9812466,3127.6,3126.7,3.19823203]
[1767869971051,1.8202466,3127.5,3126.7,3.19823203]
[1767869971237,1.8202466,3127.5,3126.8,3.19814878]
[1767869972373,1.8202466,3127.5,3126.7,0.91521515]
[1767869972669,1.8202466,3127.5,3126.7,4.11346934]
[1767869972858,0.83899999,3127.4,3126.7,4.84465294]
[1767869975772,0.95727863,3127.3,3126.7,0.7311836]
[1767869975975,0.83899999,3127.4,3126.8,0.93406915]
[1767869977153,8.57628212,3127.5,3126.8,0.93406915]
[1767869977353,8.57228214,3127.5,3126.8,0.93406915]
[1767869978370,3.1971872,3127.8,3126.9,0.93406915]
[1767869978681,0.839,3127.7,3127.1,0.93406915]
[1767869978882,0.73494567,3127.7,3127.2,4.13181793]
[1767869979056,0.73494567,3127.7,3127.3,0.93406915]
[1767869979260,0.73494567,3127.7,3127.5,0.93406915]
[1767869981167,0.83899999,3127.6,3127.5,0.93406915]
[1767869981367,0.95727863,3127.6,3127.2,3.19771703]
[1767869981689,0.94301806,3127.6,3127.0,3.9309286]
[1767869981866,0.92306035,3127.6,3127.0,3.19789051]
[1767869982260,0.92306035,3127.6,3127.1,0.001]
[1767869982671,0.92306035,3127.6,3127.1,3.19882744]
[1767869982877,0.92306035,3127.6,3127.2,0.31988274]
[1767869983278,0.83899999,3127.5,3127.2,0.31988274]
[1767869983790,0.92306035,3127.6,3127.2,3.51761779]
[1767869984187,0.839,3127.7,3127.2,3.51761779]
[1767869984358,0.839,3127.7,3127.2,0.31988274]
[1767869984558,0.839,3127.7,3127.2,3.51762456]
[1767869984960,0.839,3127.7,3127.2,4.45169371]
[1767869985160,0.839,3127.7,3127.2,1.25395189]
[1767869985386,0.839,3127.7,3127.2,4.45169877]
[1767869985876,0.83899999,3127.6,3127.2,4.45169877]
[1767869986397,0.002,3127.9,3127.7,0.93406915]
[1767869986957,0.002,3127.9,3127.7,0.95402749]
[1767869987165,0.83899999,3127.8,3127.7,0.01995834]
[1767869994102,0.95727863,3127.7,3127.3,3.19764057]
[1767869994594,0.95727863,3127.7,3127.2,3.19771098]
[1767869995400,0.95727863,3127.7,3127.1,0.001]
[1767869995771,0.84099999,3127.8,3127.2,0.93406915]
[1767869995968,0.95727863,3127.7,3127.1,0.001]
[1767869996290,0.84099999,3127.8,3127.1,0.001]
[1767869996701,0.95727863,3127.7,3127.1,0.001]
[1767869999408,0.83899999,3127.6,3127.1,0.001]
[1767870000271,0.83899999,3127.6,3127.1,0.93506915]
[1767870000514,0.83899999,3127.6,3127.1,0.001]
[1767870001177,1.79627862,3127.6,3127.1,0.001]
[1767870001695,0.83899999,3127.6,3127.1,0.001]
[1767870002078,0.83899999,3127.6,3127.1,0.93506915]
[1767870002405,0.002,3128.3,3127.6,0.95156087]
[1767870002701,0.002,3128.3,3127.8,0.95156087]
[1767870002905,0.002,3128.6,3128.1,0.95156087]
[1767870003480,0.839,3128.8,3128.1,0.95156087]
[1767870004303,0.002,3129.1,3128.2,0.94155109]
[1767870004601,0.839,3129.4,3128.6,0.94155109]
[1767870004800,0.839,3129.3,3128.6,0.94155109]
[1767870005776,0.839,3129.3,3128.6,4.13783688]
[1767870006197,0.83899999,3129.2,3128.7,0.94155109]
[1767870006396,0.002,3129.5,3129.0,0.94155109]
[1767870006594,0.002,3129.9,3129.2,0.94155109]
[1767870006595,0.841,3129.9,3129.2,0.94155109]
[1767870006806,0.92548693,3129.8,3129.2,0.45199583]
[1767870007111,0.92548693,3129.8,3128.9,3.57840723]
[1767870007476,0.002,3129.0,3128.9,3.57840723]
[1767870007707,0.002,3129.3,3128.6,6.39260363]
[1767870007906,3.57840723,3129.8,3128.7,0.94155109]
[1767870008412,3.57840723,3129.8,3128.6,6.39260363]
[1767870008413,3.57840723,3129.8,3128.9,1.78055108]
[1767870008715,0.841,3129.9,3128.9,1.1196062]
[1767870008899,0.002,3129.9,3129.0,0.94155109]
[1767870009479,0.002,3129.9,3129.2,0.94155109]
[1767870010413,0.83899999,3129.8,3129.4,0.94155109]
[1767870011594,0.002,3129.9,3129.4,0.94155109]
[1767870013605,0.83899999,3129.8,3129.4,4.13702977]
[1767870014327,0.002,3129.9,3129.5,0.94155109]
[1767870014531,0.839,3130.2,3129.4,7.12424226]
[1767870014699,0.92548693,3130.1,3129.4,7.12424226]
[1767870015093,0.839,3130.2,3129.4,7.12424226]
[1767870015295,0.92548693,3130.4,3129.4,7.12424226]
[1767870015522,1.76448693,3130.3,3129.4,7.12424226]
[1767870015718,0.45058942,3130.4,3129.5,0.94155109]
[1767870015921,0.839,3130.3,3129.5,0.94155109]
[1767870016532,0.839,3130.2,3129.5,0.94155109]
[1767870017139,0.83899999,3130.3,3129.8,0.94155109]
[1767870017433,0.839,3130.5,3130.0,0.94155109]
[1767870017834,0.839,3130.5,3129.5,0.94155109]
[1767870017835,3.57840723,3130.3,3129.5,0.94155109]
[1767870017993,3.57840723,3130.3,3129.7,3.19514791]
[1767870018200,3.57840723,3130.3,3129.8,3.19506072]
[1767870018901,4.41740723,3130.5,3129.8,3.19506072]
[1767870019409,0.002,3130.0,3129.8,3.19506072]
[1767870019624,0.002,3130.0,3129.7,4.13671755]
[1767870020335,3.57840723,3129.9,3129.3,0.94155109]
[1767870020633,3.57840723,3129.9,3129.3,4.13708807]
[1767870020817,3.57840723,3129.9,3129.3,0.94155109]
[1767870021030,3.57840723,3129.7,3129.0,4.13745221]
[1767870021202,3.57840723,3129.5,3128.9,0.001]
[1767870021602,0.92548693,3129.8,3128.9,0.94255109]
[1767870021603,3.57840723,3129.7,3128.9,0.94255109]
[1767870021942,0.839,3129.5,3128.9,0.94255109]
[1767870022533,4.41740723,3129.5,3128.9,0.001]
[1767870022717,1.16620184,3129.5,3128.9,0.001]
[1767870022918,3.57840723,3129.3,3128.9,0.001]
[1767870023849,0.92548693,3129.4,3128.6,3.19627148]
[1767870024054,3.57840723,3128.9,3128.3,4.1380734]
[1767870024197,3.57840723,3129.1,3128.4,3.19647864]
[1767870024549,3.57840723,3129.1,3128.4,3.19650161]
[1767870024804,3.57840723,3128.8,3128.3,0.94155109]
[1767870025326,3.57840723,3128.5,3127.8,3.19709233]
[1767870025526,3.57840723,3128.2,3127.8,3.19709233]
[1767870025826,0.839,3128.5,3127.8,3.19709233]
[1767870026239,0.839,3128.5,3127.7,0.94155109]
[1767870026240,0.839,3128.5,3127.7,4.13874065]
[1767870026435,0.839,3128.5,3127.7,4.87234695]
[1767870028025,0.839,3128.5,3127.8,0.94155109]
[1767870028831,0.83899999,3128.4,3127.8,0.94155109]
[1767870029129,0.83899999,3128.4,3127.9,0.94155109]
[1767870029732,0.83899999,3128.4,3128.0,0.94155109]
[1767870030728,0.839,3128.6,3128.0,0.94155109]
[1767870031659,0.839,3128.6,3128.1,0.001]
[1767870032241,0.90835649,3128.5,3128.1,0.001]
[1767870032435,0.90835649,3128.5,3127.4,0.93249675]
[1767870032745,0.90835649,3128.5,3127.5,3.19735038]
[1767870032951,0.90835649,3128.5,3127.6,3.19730862]
[1767870033462,0.90835649,3128.5,3127.7,3.19721787]
[1767870034046,0.90835649,3128.5,3127.6,4.12979197]
[1767870034239,1.77195956,3128.5,3127.6,4.12979197]
[1767870034427,4.96838896,3128.5,3127.6,4.12979197]
[1767870035166,0.86360307,3128.5,3127.7,0.93249675]
[1767870035466,4.53143677,3128.6,3127.7,0.93249675]
[1767870036234,5.43979326,3128.6,3127.7,0.93249675]
[1767870036435,0.90835649,3128.5,3127.6,3.19729522]
[1767870036734,0.90835649,3128.5,3127.7,3.19721157]
[1767870036964,0.90835649,3129.4,3127.8,0.93249675]
[1767870037149,0.90835649,3129.2,3128.0,0.93249675]
[1767870037644,0.90835649,3129.2,3127.9,0.73269459]
[1767870037645,0.90835649,3129.2,3128.1,0.96446503]
[1767870038162,3.1958071,3129.1,3128.2,3.19672655]
[1767870038471,3.1958071,3129.1,3128.1,4.16125587]
[1767870038639,4.00969596,3129.1,3128.1,4.16125587]
[1767870038834,4.00969596,3129.1,3128.2,0.93249675]
[1767870039050,0.839,3129.0,3128.2,0.93249675]
[1767870040738,0.839,3129.0,3128.3,0.93249675]
[1767870041140,3.19563248,3129.3,3128.3,0.93249675]
[1767870041341,0.839,3129.2,3128.4,0.73258917]
[1767870041669,1.74735649,3129.2,3128.4,0.73258917]
[1767870041850,0.90835649,3129.1,3128.3,0.93249675]
[1767870042762,0.90835649,3129.1,3128.0,7.32635863]
[1767870042963,0.90835649,3129.1,3128.1,0.93249675]
[1767870043339,0.002,3128.7,3128.1,0.93249675]
[1767870043743,0.002,3128.7,3128.0,6.39486188]
[1767870044056,0.002,3128.7,3128.1,0.71275565]
[1767870044846,0.002,3128.7,3128.2,3.19672655]
[1767870045947,0.90835649,3128.9,3128.2,3.19672655]
[1767870046942,0.002,3129.0,3128.2,7.32594985]
[1767870047769,0.91035649,3129.0,3128.2,7.32594985]
[1767870048067,0.91035649,3129.0,3128.3,0.80387055]
[1767870049454,0.002,3129.0,3128.5,0.93249675]
[1767870049657,0.90835649,3129.7,3128.8,0.93249675]
[1767870049843,0.839,3129.6,3128.8,0.93249675]
[1767870050047,0.839,3129.6,3128.8,1.38372675]
[1767870050273,0.839,3129.6,3128.8,0.93249675]
[1767870050454,1.74735649,3129.6,3128.8,0.93249675]
[1767870050777,4.48815978,3129.4,3128.5,0.93249675]
[1767870050948,3.57980329,3129.2,3128.5,0.93249675]
[1767870051381,4.48815978,3129.4,3128.5,0.93249675]
[1767870051558,4.48815978,3129.4,3128.7,3.19621568]
[1767870052566,4.48815978,3129.4,3128.6,0.73255411]
[1767870052567,4.48815978,3129.2,3128.5,3.19635716]
[1767870052765,0.839,3129.1,3128.6,3.19631247]
[1767870053172,4.48815978,3129.0,3128.3,0.80387055]
[1767870053391,4.48815978,3129.0,3128.4,3.1964604]
[1767870053684,0.90835649,3129.0,3128.2,6.3934531]
[1767870053857,0.90835649,3129.0,3128.2,7.32594985]
[1767870055559,0.90835649,3129.0,3128.8,0.001]
[1767870055755,0.002,3130.0,3128.8,0.001]
[1767870055992,8.52215003,3129.9,3128.8,0.93349675]
[1767870056288,1.76077149,3129.8,3128.8,0.93349675]
[1767870056592,0.90835649,3129.7,3128.8,0.93349675]
[1767870058187,4.04756087,3129.8,3128.9,0.93249675]
[1767870058558,4.48815978,3129.7,3128.9,0.93249675]
[1767870058760,4.48815978,3129.7,3128.8,3.19706775]
[1767870058960,4.48815978,3129.7,3128.8,3.92965237]
[1767870059802,3.57980329,3129.3,3128.8,0.001]
[1767870060019,4.41880329,3129.3,3128.8,0.001]
[1767870060500,5.32715978,3129.3,3128.8,0.001]
[1767870061685,3.57980329,3129.1,3128.8,0.001]
[1767870062267,5.32715978,3129.3,3128.8,0.001]
[1767870062569,6.17942023,3129.3,3128.8,0.001]
[1767870062781,1.74735649,3129.3,3128.8,0.001]
[1767870064302,3.57980329,3129.2,3128.8,0.001]
[1767870065075,1.74735649,3129.3,3128.8,0.001]
[1767870066506,0.90949025,3129.0,3128.3,0.92804072]
[1767870067170,4.49002768,3128.8,3128.1,0.92804072]
[1767870067367,0.839,3128.7,3128.1,0.92804072]
[1767870067901,0.839,3128.7,3128.0,4.16760199]
[1767870068386,0.839,3128.7,3128.1,3.1968172]
[1767870068998,0.839,3128.7,3128.0,4.16760698]
[1767870069205,0.91527388,3128.4,3127.6,0.9697207]
[1767870069369,0.91527388,3128.4,3127.6,4.16700767]
[1767870070000,0.91527388,3128.4,3127.5,3.19740852]
[1767870070298,0.91527388,3128.4,3127.4,4.16721104]
[1767870070681,0.91527388,3128.4,3127.5,0.9697207]
[1767870071080,0.91527388,3128.3,3127.5,4.1671205]
[1767870071303,0.839,3128.2,3127.5,4.1671205]
[1767870071499,0.839,3128.2,3127.5,0.9697207]
[1767870071702,1.75427388,3128.2,3127.5,0.9697207]
[1767870071900,0.91527388,3128.1,3127.4,3.19752102]
[1767870072074,0.91527388,3128.5,3127.6,0.9697207]
[1767870072407,0.839,3128.4,3127.6,0.9697207]
[1767870072774,1.75427388,3128.4,3127.6,0.9697207]
[1767870073304,8.14739734,3128.4,3127.6,0.9697207]
[1767870073509,8.14739734,3128.4,3127.3,3.19759568]
[1767870073510,0.91527388,3128.3,3127.3,3.19759568]
[1767870073673,0.91527388,3128.2,3127.4,0.9697207]
[1767870073876,0.91527388,3128.2,3127.5,3.19739092]
[1767870074706,0.91527388,3128.2,3127.6,3.1972469]
[1767870074893,0.91527388,3128.2,3127.5,4.16712113]
[1767870075092,0.81473973,3128.3,3127.5,4.16712113]
[1767870075867,0.91527388,3128.2,3127.5,0.9697207]
[1767870076081,1.49183907,3128.2,3127.5,0.9697207]
[1767870077002,0.91527388,3128.2,3127.5,4.16714448]
[1767870079376,0.91527388,3128.2,3127.8,0.001]
[1767870080002,1.75427388,3128.4,3127.8,0.001]
[1767870080400,0.91527388,3128.3,3127.8,0.001]
[1767870080778,0.91527388,3128.3,3127.2,3.19769304]
[1767870080997,0.49508539,3128.2,3127.6,0.9697207]
[1767870081314,0.91527388,3128.5,3127.6,0.9697207]
[1767870081315,0.839,3128.1,3127.6,0.9697207]
[1767870083004,0.839,3128.1,3127.4,4.16726495]
[1767870083375,1.75427388,3128.1,3127.4,0.9697207]
[1767870084210,1.75427388,3128.1,3127.2,0.9697207]
[1767870084396,0.91527388,3128.0,3127.2,0.9697207]
[1767870085397,0.91527388,3128.0,3127.1,0.001]
[1767870085615,0.91527388,3128.0,3127.1,0.73768319]
[1767870086105,0.91527388,3127.9,3127.1,3.9355037]
[1767870086791,0.91527388,3127.9,3127.1,4.9052244]
[1767870087783,0.91527388,3127.9,3127.2,0.9697207]
[1767870087982,0.839,3128.0,3127.4,0.9697207]
[1767870088184,0.839,3128.0,3127.4,4.16723224]
[1767870088388,1.75427388,3128.0,3127.3,3.19758586]
[1767870088580,1.75427388,3128.0,3127.3,4.00785597]
[1767870088784,1.75427388,3128.0,3127.3,0.81027011]
[1767870089616,1.75427388,3128.0,3127.2,4.16746376]
[1767870089783,4.95123181,3128.0,3127.2,0.9697207]
[1767870089986,1.75427388,3128.0,3127.2,4.16744481]
[1767870090825,1.75427388,3128.0,3127.3,0.9697207]
[1767870091202,0.002,3127.8,3127.3,0.9697207]
[1767870091406,0.002,3127.8,3127.3,1.38656518]
[1767870091602,0.002,3127.8,3127.3,0.9697207]
[1767870092683,0.99252672,3127.8,3127.1,3.19880126]
[1767870092887,0.002,3127.8,3127.4,0.99677094]
[1767870095426,0.002,3127.8,3127.5,0.99677094]
[1767870095795,0.99252672,3127.8,3127.1,0.001]
[1767870096003,1.17567939,3127.8,3127.1,0.99777094]
[1767870097319,4.37286989,3127.8,3127.1,0.99777094]
[1767870097518,0.18515267,3127.8,3127.1,0.99777094]
[1767870097696,0.18515267,3127.8,3127.2,0.99677094]
[1767870097697,0.002,3127.8,3127.2,0.99677094]
[1767870099217,3.19914384,3127.8,3127.2,0.99677094]
[1767870099895,0.002,3127.8,3127.2,0.99677094]
[1767870103325,0.002,3127.8,3127.4,0.001]
[1767870103619,0.002,3127.5,3127.4,0.001]
[1767870103799,0.002,3127.8,3127.4,0.001]
[1767870106226,0.002,3127.8,3127.7,0.99677094]
[1767870106227,0.839,3127.8,3127.7,0.99677094]
[1767870106399,0.80324496,3127.8,3127.7,0.99677094]
[1767870106601,0.78524451,3127.8,3127.4,0.001]
[1767870106926,0.78324446,3127.8,3127.5,0.99677094]
[1767870107794,0.78324446,3127.8,3127.4,0.001]
[1767870107994,0.78324446,3127.8,3127.4,0.99777094]
[1767870111702,0.839,3127.9,3127.4,0.99777094]
[1767870112805,4.03604882,3127.9,3127.4,0.99777094]
[1767870113313,0.839,3127.9,3127.4,0.99777094]
[1767870113514,4.0360783,3127.9,3127.4,0.99777094]
[1767870114140,0.839,3127.9,3127.4,0.99777094]
[1767870114310,4.03605048,3127.9,3127.4,0.99777094]
[1767870115004,0.99052672,3127.8,3127.4,0.001]
[1767870115501,4.03605048,3127.9,3127.4,0.001]
[1767870115702,5.0265772,3127.9,3127.4,0.001]
[1767870115897,1.82952672,3127.9,3127.4,0.001]
[1767870116102,5.02665116,3127.9,3127.4,0.001]
[1767870116357,5.0265977,3127.9,3127.4,0.001]
[1767870116714,5.0265977,3127.9,3127.7,0.001]
[1767870119152,1.82952672,3127.9,3127.7,0.001]
[1767870119749,4.03604821,3127.9,3127.7,0.001]
[1767870119945,0.839,3127.9,3127.7,0.001]
[1767870120138,5.02658599,3127.9,3127.7,0.001]
[1767870120649,4.03605927,3127.9,3127.7,0.001]
[1767870120848,5.02658599,3127.9,3127.7,0.001]
[1767870121747,4.03605927,3127.9,3127.7,0.001]
[1767870123062,4.98158159,3127.9,3127.7,0.001]
[1767870123719,4.03605927,3127.9,3127.7,0.001]
[1767870124642,0.839,3127.9,3127.7,0.001]
[1767870125229,4.03604343,3127.9,3127.7,0.001]
[1767870127350,8.99132968,3127.9,3127.4,0.001]
[1767870127549,0.94067754,3127.7,3127.1,0.001]
[1767870127937,0.94067754,3127.7,3127.1,0.9124801]
[1767870127938,0.839,3127.7,3127.1,0.9124801]
[1767870128252,0.839,3127.9,3127.3,0.9114801]
[1767870128452,0.839,3127.9,3127.7,0.001]
[1767870129970,4.03610828,3127.9,3127.7,0.001]
[1767870132079,7.23321656,3127.9,3127.7,0.001]
[1767870132235,8.99148351,3127.9,3127.1,0.001]
[1767870132558,0.94067754,3127.8,3127.2,0.9114801]
[1767870134172,4.1378705,3127.8,3127.2,0.9114801]
[1767870134876,7.33506346,3127.8,3127.2,0.9114801]
[1767870135075,4.1378705,3127.8,3127.2,0.9114801]
[1767870135445,4.85364991,3127.9,3127.2,0.9114801]
[1767870135670,4.85364991,3127.9,3127.3,0.9114801]
[1767870135671,4.0360605,3127.9,3127.3,0.9114801]
[1767870136178,8.17379854,3127.9,3127.3,0.9114801]
[1767870136579,4.97673804,3127.9,3127.3,0.9114801]
[1767870137678,8.17379854,3127.9,3127.3,0.9114801]
[1767870138272,6.15248527,3127.9,3127.3,0.9114801]
[1767870139247,9.34954577,3127.9,3127.3,0.9114801]
[1767870139489,0.94067754,3127.8,3127.1,0.9124801]
[1767870139979,0.94067754,3127.7,3127.1,0.9124801]
[1767870140158,0.002,3127.6,3127.1,0.9124801]
[1767870142961,0.002,3127.6,3127.2,0.9114801]
[1767870143161,0.002,3127.6,3127.4,0.9114801]
[1767870143479,0.94267754,3127.6,3127.3,0.44941539]
[1767870144171,0.94267754,3127.6,3127.1,0.001]
[1767870148574,0.002,3127.6,3127.1,0.9124801]
[1767870152687,0.002,3127.9,3127.6,0.99797344]
[1767870152873,0.002,3129.0,3127.1,3.19885104]
[1767870152874,0.90017328,3128.9,3128.1,0.99797344]
[1767870153074,0.90017328,3128.9,3127.5,3.58167375]
[1767870153075,0.90017328,3128.9,3128.3,0.99797344]
[1767870153384,0.841,3129.0,3128.3,0.99797344]
[1767870153786,4.48184703,3128.9,3128.3,0.99797344]
[1767870155089,7.67793864,3128.9,3128.3,0.99797344]
[1767870155289,8.84962952,3128.9,3128.3,0.99797344]
[1767870155664,1.17169088,3128.9,3128.3,0.99797344]
[1767870156156,4.36773354,3128.9,3128.3,0.99797344]
[1767870156363,1.74117328,3129.0,3128.3,0.99797344]
[1767870156364,0.002,3129.0,3128.4,0.99797344]
[1767870156703,0.002,3129.0,3128.7,0.99797344]
[1767870156906,0.90217328,3129.0,3128.4,4.19448537]
[1767870158075,0.002,3129.0,3128.5,0.99797344]
[1767870158278,0.002,3129.0,3128.6,0.99797344]
[1767870160828,0.002,3129.0,3128.3,0.99797344]
[1767870161124,0.90217328,3129.0,3128.3,0.99797344]
[1767870161324,0.90217328,3129.0,3128.2,3.19670199]
[1767870163515,0.90217328,3129.0,3128.2,6.77837574]
[1767870163825,0.90217328,3129.0,3128.3,1.18121707]
[1767870164927,0.90217328,3129.0,3128.6,0.001]
[1767870166022,0.90017328,3128.8,3128.6,0.001]
[1767870166612,0.90017328,3128.9,3128.6,0.001]
[1767870168538,4.09810294,3129.0,3128.6,0.001]
[1767870169132,0.90017328,3128.9,3128.6,0.001]
[1767870169304,4.48184703,3128.9,3128.6,0.001]
[1767870170997,0.90017328,3128.9,3128.6,0.001]
[1767870171201,0.002,3129.0,3128.6,0.001]
[1767870173516,0.002,3129.0,3128.6,0.99897344]
[1767870174112,0.002,3129.0,3128.7,0.99797344]
[1767870176534,0.002,3129.0,3128.9,0.001]
[1767870176905,0.002,3129.0,3128.9,0.99897344]
[1767870177110,0.90217328,3130.0,3129.0,0.99797344]
[1767870177333,0.90217328,3130.0,3129.5,3.58167375]
[1767870177636,0.90217328,3130.0,3129.2,0.99797344]
[1767870177808,0.90217328,3130.0,3129.3,3.58167375]
[1767870178333,0.90217328,3130.0,3129.5,3.58167375]
[1767870179005,0.90217328,3130.0,3129.3,3.58167375]
[1767870179531,0.90217328,3130.0,3129.4,0.99797344]
[1767870179720,0.90217328,3130.0,3129.3,3.58167375]
[1767870179923,0.90217328,3130.0,3129.4,0.79590092]
[1767870181419,0.002,3130.0,3129.5,0.99797344]
[1767870182217,0.99413268,3130.0,3129.4,0.79590092]
[1767870182429,0.99413268,3130.0,3129.3,0.98760352]
[1767870183034,0.99413268,3130.0,3129.2,0.18369734]
[1767870184134,0.99413268,3130.0,3129.3,0.97669417]
[1767870184135,0.002,3130.0,3129.3,0.97669417]
[1767870185427,0.002,3130.0,3129.3,4.17226894]
[1767870185626,0.002,3130.0,3129.4,0.97669417]
[1767870185941,0.002,3130.0,3129.5,0.97669417]
[1767870186842,0.93101625,3130.0,3129.4,0.43559663]
[1767870187020,0.93101625,3130.0,3129.2,1.16039151]
[1767870188446,0.002,3129.7,3129.3,0.97669417]
[1767870190266,0.002,3130.0,3129.6,0.97669417]
[1767870196597,0.93101625,3130.0,3129.3,0.97669417]